[Event "December 5 Late 2023"]
[Site "https://www.chess.com"]
[Date "2023.12.05"]
[Round "7"]
[White "Rian, Kapriaga"]
[Black "Baches Garcia, Guillermo"]
[Result "1-0"]
[Board "90"]
[TimeControl "180+1"]
[WhiteFideId "7103263"]
[BlackFideId "2209764"]
[WhiteElo "2332"]
[BlackElo "2506"]
[WhiteTeam "INA"]
[BlackTeam "ESP"]
[WhiteClock "0:00:52"]
[BlackClock "0:00:00"]

1. d4 {[%clk 0:03:00]}  d5 {[%clk 0:02:59]} 2. Nf3 {[%clk 0:02:59]}  e6 {[%clk 0:03:00]} 3. c4 {[%clk 0:02:58]}  Nf6 {[%clk 0:02:59]} 4. Nc3 {[%clk 0:02:57]}  a6 {[%clk 0:02:58]} 5. cxd5 {[%clk 0:02:54]}  exd5 {[%clk 0:02:59]} 6. Bg5 {[%clk 0:02:54]}  Be6 {[%clk 0:02:59]} 7. e3 {[%clk 0:02:54]}  Nbd7 {[%clk 0:03:00]} 8. Bd3 {[%clk 0:02:52]}  c6 {[%clk 0:03:00]} 9. O-O {[%clk 0:02:50]}  Bd6 {[%clk 0:03:00]} 10. Qc2 {[%clk 0:02:47]}  Qc7 {[%clk 0:03:00]} 11. Rab1 {[%clk 0:02:41]}  h6 {[%clk 0:02:57]} 12. Bxf6 {[%clk 0:02:39]}  Nxf6 {[%clk 0:02:56]} 13. g3 {[%clk 0:02:25]}  O-O {[%clk 0:02:55]} 14. b4 {[%clk 0:02:23]}  Rfc8 {[%clk 0:02:49]} 15. a4 {[%clk 0:02:23]}  b6 {[%clk 0:02:40]} 16. Rfc1 {[%clk 0:02:18]}  Qe7 {[%clk 0:02:33]} 17. Qb2 {[%clk 0:02:03]}  Nd7 {[%clk 0:02:12]} 18. e4 {[%clk 0:01:50]}  dxe4 {[%clk 0:02:04]} 19. Nxe4 {[%clk 0:01:49]}  Bd5 {[%clk 0:02:02]} 20. Re1 {[%clk 0:01:43]}  Qf8 {[%clk 0:01:58]} 21. Ne5 {[%clk 0:01:34]}  Nxe5 {[%clk 0:01:51]} 22. dxe5 {[%clk 0:01:34]}  Be7 {[%clk 0:01:48]} 23. Re2 {[%clk 0:01:16]}  Rd8 {[%clk 0:01:34]} 24. Re3 {[%clk 0:01:14]}  Be6 {[%clk 0:01:27]} 25. Bc2 {[%clk 0:01:02]}  Rab8 {[%clk 0:01:15]} 26. Qc3 {[%clk 0:01:01]}  Rdc8 {[%clk 0:01:08]} 27. Qd3 {[%clk 0:00:55]}  Bxb4 {[%clk 0:00:00]} 28. Nf6+ {[%clk 0:00:52]} 1-0

[Event "December 5 Late 2023"]
[Site "https://www.chess.com"]
[Date "2023.12.05"]
[Round "7"]
[White "Monteiro, Luis Felipe Furtado"]
[Black "Rees, Ioan"]
[Result "0-1"]
[Board "91"]
[TimeControl "180+1"]
[WhiteFideId "22702806"]
[BlackFideId "1801236"]
[WhiteElo "2076"]
[BlackElo "2502"]
[WhiteTeam "BRA"]
[BlackTeam "WLS"]
[WhiteClock "0:00:00"]
[BlackClock "0:00:39"]

1. d4 {[%clk 0:02:08]}  d5 {[%clk 0:02:43]} 2. c4 {[%clk 0:02:06]}  e6 {[%clk 0:02:43]} 3. Nf3 {[%clk 0:02:06]}  Nf6 {[%clk 0:02:42]} 4. Nc3 {[%clk 0:02:07]}  Nbd7 {[%clk 0:02:42]} 5. Bg5 {[%clk 0:02:08]}  Be7 {[%clk 0:02:39]} 6. e3 {[%clk 0:02:08]}  O-O {[%clk 0:02:38]} 7. Rc1 {[%clk 0:02:08]}  a6 {[%clk 0:02:37]} 8. c5 {[%clk 0:02:07]}  c6 {[%clk 0:02:36]} 9. Bd3 {[%clk 0:02:05]}  e5 {[%clk 0:02:27]} 10. Bxf6 {[%clk 0:01:50]}  Bxf6 {[%clk 0:02:26]} 11. dxe5 {[%clk 0:01:47]}  Nxe5 {[%clk 0:02:27]} 12. Nxe5 {[%clk 0:01:46]}  Bxe5 {[%clk 0:02:28]} 13. O-O {[%clk 0:01:46]}  g6 {[%clk 0:02:26]} 14. b4 {[%clk 0:01:46]}  Qf6 {[%clk 0:02:23]} 15. Ne2 {[%clk 0:01:37]}  Qg7 {[%clk 0:02:12]} 16. a4 {[%clk 0:01:31]}  h5 {[%clk 0:02:09]} 17. b5 {[%clk 0:01:26]}  axb5 {[%clk 0:02:09]} 18. axb5 {[%clk 0:01:27]}  h4 {[%clk 0:02:09]} 19. e4 {[%clk 0:01:24]}  Be6 {[%clk 0:01:56]} 20. exd5 {[%clk 0:01:21]}  Bxd5 {[%clk 0:01:57]} 21. bxc6 {[%clk 0:01:18]}  Bxc6 {[%clk 0:01:54]} 22. Qc2 {[%clk 0:01:12]}  Rfe8 {[%clk 0:01:48]} 23. Rfd1 {[%clk 0:01:07]}  Qf6 {[%clk 0:01:43]} 24. Bc4 {[%clk 0:01:00]}  Qg5 {[%clk 0:01:13]} 25. g3 {[%clk 0:00:46]}  hxg3 {[%clk 0:01:11]} 26. hxg3 {[%clk 0:00:41]}  Kg7 {[%clk 0:00:57]} 27. Bd5 {[%clk 0:00:39]}  Ba4 {[%clk 0:00:53]} 28. Bb3 {[%clk 0:00:36]}  Bc6 {[%clk 0:00:50]} 29. Bd5 {[%clk 0:00:29]}  Bxg3 {[%clk 0:00:49]} 30. Nxg3 {[%clk 0:00:20]}  Bxd5 {[%clk 0:00:49]} 31. Qc3+ {[%clk 0:00:13]}  Kg8 {[%clk 0:00:48]} 32. f4 {[%clk 0:00:12]}  Qxf4 {[%clk 0:00:38]} 33. Rxd5 {[%clk 0:00:12]}  Re3 {[%clk 0:00:39]} 34. Rd3 {[%clk 0:00:02]}  Qxg3+ {[%clk 0:00:38]} 35. Kf1 {[%clk 0:00:00]}  Rxd3 {[%clk 0:00:39]} 0-1

[Event "December 5 Late 2023"]
[Site "https://www.chess.com"]
[Date "2023.12.05"]
[Round "7"]
[White "Arnold, Ken"]
[Black "Khruschiov, Alexey"]
[Result "0-1"]
[Board "92"]
[TimeControl "180+1"]
[WhiteFideId "2056836"]
[BlackFideId "13900544"]
[WhiteElo "2427"]
[BlackElo "2660"]
[WhiteTeam "USA"]
[BlackTeam "MDA"]
[WhiteClock "0:00:36"]
[BlackClock "0:00:57"]

1. d4 {[%clk 0:03:00]}  Nf6 {[%clk 0:02:57]} 2. Nf3 {[%clk 0:03:01]}  d6 {[%clk 0:02:56]} 3. g3 {[%clk 0:03:01]}  g6 {[%clk 0:02:56]} 4. Bg2 {[%clk 0:03:01]}  Bg7 {[%clk 0:02:57]} 5. O-O {[%clk 0:03:02]}  O-O {[%clk 0:02:58]} 6. Nbd2 {[%clk 0:03:00]}  Nc6 {[%clk 0:02:58]} 7. c3 {[%clk 0:03:00]}  e5 {[%clk 0:02:58]} 8. dxe5 {[%clk 0:02:59]}  dxe5 {[%clk 0:02:58]} 9. Nc4 {[%clk 0:02:59]}  e4 {[%clk 0:02:57]} 10. Ng5 {[%clk 0:02:59]}  Qe7 {[%clk 0:02:56]} 11. Qc2 {[%clk 0:02:49]}  Re8 {[%clk 0:02:55]} 12. h4 {[%clk 0:02:44]}  Bf5 {[%clk 0:02:52]} 13. Ne3 {[%clk 0:02:43]}  Bd7 {[%clk 0:02:51]} 14. Nh3 {[%clk 0:02:42]}  Rad8 {[%clk 0:02:49]} 15. b3 {[%clk 0:02:39]}  Bc8 {[%clk 0:02:47]} 16. Bb2 {[%clk 0:02:31]}  Ne5 {[%clk 0:02:47]} 17. c4 {[%clk 0:02:29]}  c6 {[%clk 0:02:39]} 18. Rad1 {[%clk 0:02:27]}  Nf3+ {[%clk 0:02:32]} 19. exf3 {[%clk 0:02:24]}  exf3 {[%clk 0:02:33]} 20. Bxf3 {[%clk 0:02:24]}  Bxh3 {[%clk 0:02:33]} 21. Bg2 {[%clk 0:02:25]}  Bxg2 {[%clk 0:02:32]} 22. Kxg2 {[%clk 0:02:24]}  h5 {[%clk 0:02:29]} 23. Bxf6 {[%clk 0:02:18]}  Qxf6 {[%clk 0:02:26]} 24. Rxd8 {[%clk 0:02:16]}  Rxd8 {[%clk 0:02:26]} 25. Rd1 {[%clk 0:02:16]}  Rxd1 {[%clk 0:02:14]} 26. Qxd1 {[%clk 0:02:15]}  Qe6 {[%clk 0:02:15]} 27. Qd3 {[%clk 0:02:10]}  Bf6 {[%clk 0:02:14]} 28. a4 {[%clk 0:02:09]}  Kg7 {[%clk 0:02:14]} 29. Nc2 {[%clk 0:02:00]}  a6 {[%clk 0:02:12]} 30. Ne3 {[%clk 0:01:51]}  Qe5 {[%clk 0:02:10]} 31. Nf1 {[%clk 0:01:49]}  Qb2 {[%clk 0:02:07]} 32. Nd2 {[%clk 0:01:42]}  Bd4 {[%clk 0:02:02]} 33. Kf3 {[%clk 0:01:21]}  f5 {[%clk 0:02:00]} 34. Ke2 {[%clk 0:01:17]}  Kf6 {[%clk 0:01:58]} 35. f3 {[%clk 0:01:14]}  Ke5 {[%clk 0:01:51]} 36. g4 {[%clk 0:01:13]}  Kf4 {[%clk 0:01:39]} 37. gxf5 {[%clk 0:01:13]}  gxf5 {[%clk 0:01:40]} 38. Kd1 {[%clk 0:01:13]}  Be3 {[%clk 0:01:20]} 39. Qd6+ {[%clk 0:01:09]}  Qe5 {[%clk 0:01:19]} 40. Qh6+ {[%clk 0:01:08]}  Kg3 {[%clk 0:01:20]} 41. Nf1+ {[%clk 0:01:00]}  Kf2 {[%clk 0:01:20]} 42. Nxe3 {[%clk 0:01:00]}  Qxe3 {[%clk 0:01:21]} 43. f4 {[%clk 0:00:51]}  Qxb3+ {[%clk 0:01:20]} 44. Kd2 {[%clk 0:00:50]}  Qxc4 {[%clk 0:01:13]} 45. Qg5 {[%clk 0:00:48]}  Qd4+ {[%clk 0:01:10]} 46. Kc1 {[%clk 0:00:46]}  Qc3+ {[%clk 0:01:08]} 47. Kb1 {[%clk 0:00:46]}  Qd3+ {[%clk 0:01:06]} 48. Kc1 {[%clk 0:00:46]}  b5 {[%clk 0:01:06]} 49. axb5 {[%clk 0:00:45]}  axb5 {[%clk 0:01:06]} 50. Qxh5 {[%clk 0:00:45]}  b4 {[%clk 0:01:07]} 51. Qf7 {[%clk 0:00:39]}  b3 {[%clk 0:01:03]} 52. Kb2 {[%clk 0:00:37]}  Qc2+ {[%clk 0:01:02]} 53. Ka3 {[%clk 0:00:37]}  Qa2+ {[%clk 0:01:01]} 54. Kb4 {[%clk 0:00:37]}  c5+ {[%clk 0:00:57]} 55. Kc3 {[%clk 0:00:36]}  Qc2# {[%clk 0:00:57]} 0-1

[Event "December 5 Late 2023"]
[Site "https://www.chess.com"]
[Date "2023.12.05"]
[Round "7"]
[White "Krzywda, Andrzej"]
[Black "Zivic, Dragan"]
[Result "0-1"]
[Board "98"]
[TimeControl "180+1"]
[WhiteFideId "1114565"]
[BlackFideId "904740"]
[WhiteElo "2511"]
[BlackElo "2393"]
[WhiteTeam "POL"]
[BlackTeam "SRB"]
[WhiteClock "0:00:03"]
[BlackClock "0:01:04"]

1. e4 {[%clk 0:03:00]}  c6 {[%clk 0:02:55]} 2. d4 {[%clk 0:03:00]}  d5 {[%clk 0:02:56]} 3. e5 {[%clk 0:03:01]}  Bf5 {[%clk 0:02:56]} 4. h4 {[%clk 0:03:02]}  h5 {[%clk 0:02:55]} 5. Bd3 {[%clk 0:03:02]}  Bxd3 {[%clk 0:02:55]} 6. Qxd3 {[%clk 0:03:03]}  Qa5+ {[%clk 0:02:55]} 7. Nd2 {[%clk 0:03:02]}  e6 {[%clk 0:02:53]} 8. Nf3 {[%clk 0:03:00]}  Ne7 {[%clk 0:02:52]} 9. O-O {[%clk 0:02:58]}  Nf5 {[%clk 0:02:52]} 10. Nb3 {[%clk 0:02:54]}  Qc7 {[%clk 0:02:52]} 11. Bg5 {[%clk 0:02:42]}  Nd7 {[%clk 0:02:51]} 12. Rfe1 {[%clk 0:02:40]}  a6 {[%clk 0:02:49]} 13. c3 {[%clk 0:02:33]}  c5 {[%clk 0:02:49]} 14. dxc5 {[%clk 0:02:32]}  Nxc5 {[%clk 0:02:47]} 15. Nxc5 {[%clk 0:02:27]}  Bxc5 {[%clk 0:02:48]} 16. Nh2 {[%clk 0:01:56]}  Qb6 {[%clk 0:02:38]} 17. Qe2 {[%clk 0:01:52]}  Qb5 {[%clk 0:02:34]} 18. Qxb5+ {[%clk 0:01:45]}  axb5 {[%clk 0:02:35]} 19. a3 {[%clk 0:01:45]}  Kd7 {[%clk 0:02:33]} 20. Nf1 {[%clk 0:01:28]}  Rhf8 {[%clk 0:02:32]} 21. Nd2 {[%clk 0:01:27]}  f6 {[%clk 0:02:30]} 22. exf6 {[%clk 0:01:22]}  gxf6 {[%clk 0:02:29]} 23. Bf4 {[%clk 0:01:21]}  Nxh4 {[%clk 0:02:27]} 24. Nb3 {[%clk 0:01:16]}  Bb6 {[%clk 0:02:26]} 25. Be3 {[%clk 0:01:14]}  Bxe3 {[%clk 0:02:20]} 26. Rxe3 {[%clk 0:01:15]}  e5 {[%clk 0:02:13]} 27. Rd1 {[%clk 0:01:12]}  Kc6 {[%clk 0:02:11]} 28. Red3 {[%clk 0:01:11]}  Rad8 {[%clk 0:02:06]} 29. Rh3 {[%clk 0:01:12]}  Ng6 {[%clk 0:02:03]} 30. Rxh5 {[%clk 0:01:12]}  Nf4 {[%clk 0:02:03]} 31. Rh6 {[%clk 0:01:08]}  Rd6 {[%clk 0:02:01]} 32. g3 {[%clk 0:01:05]}  Rg8 {[%clk 0:01:59]} 33. Kf1 {[%clk 0:01:04]}  Rg6 {[%clk 0:01:57]} 34. Rh8 {[%clk 0:01:04]}  Ne6 {[%clk 0:01:57]} 35. Rc8+ {[%clk 0:00:54]}  Kb6 {[%clk 0:01:56]} 36. Re8 {[%clk 0:00:48]}  f5 {[%clk 0:01:55]} 37. Re1 {[%clk 0:00:46]}  e4 {[%clk 0:01:52]} 38. Rd1 {[%clk 0:00:46]}  f4 {[%clk 0:01:50]} 39. Nd4 {[%clk 0:00:33]}  Nxd4 {[%clk 0:01:48]} 40. Rxd4 {[%clk 0:00:34]}  fxg3 {[%clk 0:01:48]} 41. fxg3 {[%clk 0:00:35]}  Rxg3 {[%clk 0:01:44]} 42. Rexe4 {[%clk 0:00:34]}  dxe4 {[%clk 0:01:31]} 43. Rxd6+ {[%clk 0:00:34]}  Kc5 {[%clk 0:01:31]} 44. Re6 {[%clk 0:00:30]}  e3 {[%clk 0:01:24]} 45. Re7 {[%clk 0:00:28]}  b6 {[%clk 0:01:23]} 46. Re5+ {[%clk 0:00:21]}  Kc4 {[%clk 0:01:22]} 47. Re4+ {[%clk 0:00:20]}  Kd3 {[%clk 0:01:19]} 48. Rd4+ {[%clk 0:00:19]}  Kc2 {[%clk 0:01:19]} 49. Ke2 {[%clk 0:00:19]}  Kxb2 {[%clk 0:01:18]} 50. Rb4+ {[%clk 0:00:19]}  Kxc3 {[%clk 0:01:17]} 51. Rxb5 {[%clk 0:00:19]}  Kd4 {[%clk 0:01:10]} 52. Rxb6 {[%clk 0:00:19]}  Rg2+ {[%clk 0:01:09]} 53. Ke1 {[%clk 0:00:19]}  Ra2 {[%clk 0:01:09]} 54. Rb3 {[%clk 0:00:15]}  Ke4 {[%clk 0:01:07]} 55. Rb8 {[%clk 0:00:09]}  Rxa3 {[%clk 0:01:05]} 56. Re8+ {[%clk 0:00:10]}  Kd3 {[%clk 0:01:04]} 57. Rd8+ {[%clk 0:00:10]}  Kc2 {[%clk 0:01:03]} 58. Rc8+ {[%clk 0:00:11]}  Rc3 {[%clk 0:01:02]} 59. Rxc3+ {[%clk 0:00:10]}  Kxc3 {[%clk 0:01:02]} 60. Ke2 {[%clk 0:00:11]}  Kd4 {[%clk 0:01:03]} 61. Kd1 {[%clk 0:00:11]}  Kd3 {[%clk 0:01:03]} 62. Ke1 {[%clk 0:00:03]}  e2 {[%clk 0:01:04]} 0-1

[Event "December 5 Late 2023"]
[Site "https://www.chess.com"]
[Date "2023.12.05"]
[Round "7"]
[White "Leenhouts, Koen"]
[Black "Kornyukov, Alexey"]
[Result "1-0"]
[Board "99"]
[TimeControl "180+1"]
[WhiteFideId "1008439"]
[BlackFideId "4150457"]
[WhiteElo "2509"]
[BlackElo "2330"]
[WhiteTeam "NED"]
[BlackTeam "RUS"]
[WhiteClock "0:00:34"]
[BlackClock "0:00:00"]

1. e4 {[%clk 0:02:59]}  c5 {[%clk 0:02:59]} 2. Nf3 {[%clk 0:02:58]}  Nc6 {[%clk 0:02:59]} 3. Bb5 {[%clk 0:02:57]}  e6 {[%clk 0:02:58]} 4. Bxc6 {[%clk 0:02:57]}  bxc6 {[%clk 0:02:59]} 5. O-O {[%clk 0:02:56]}  Ne7 {[%clk 0:02:59]} 6. d3 {[%clk 0:02:55]}  Ng6 {[%clk 0:02:59]} 7. b3 {[%clk 0:02:55]}  Be7 {[%clk 0:02:55]} 8. Bb2 {[%clk 0:02:55]}  O-O {[%clk 0:02:54]} 9. e5 {[%clk 0:02:51]}  f6 {[%clk 0:02:52]} 10. exf6 {[%clk 0:02:41]}  Bxf6 {[%clk 0:02:53]} 11. Bxf6 {[%clk 0:02:40]}  Qxf6 {[%clk 0:02:54]} 12. Nbd2 {[%clk 0:02:40]}  d5 {[%clk 0:02:49]} 13. c4 {[%clk 0:02:30]}  e5 {[%clk 0:02:48]} 14. Qc2 {[%clk 0:02:22]}  Nf4 {[%clk 0:02:13]} 15. cxd5 {[%clk 0:02:20]}  cxd5 {[%clk 0:02:14]} 16. Qxc5 {[%clk 0:02:18]}  Bf5 {[%clk 0:01:22]} 17. Rfe1 {[%clk 0:02:14]}  Rac8 {[%clk 0:01:05]} 18. Qa5 {[%clk 0:02:04]}  e4 {[%clk 0:00:50]} 19. dxe4 {[%clk 0:01:57]}  dxe4 {[%clk 0:00:50]} 20. Qe5 {[%clk 0:01:37]}  Nh3+ {[%clk 0:00:22]} 21. gxh3 {[%clk 0:01:28]}  exf3 {[%clk 0:00:21]} 22. Qxf6 {[%clk 0:01:26]}  Rxf6 {[%clk 0:00:22]} 23. Nf1 {[%clk 0:01:14]}  h5 {[%clk 0:00:16]} 24. h4 {[%clk 0:01:11]}  Rg6+ {[%clk 0:00:12]} 25. Ng3 {[%clk 0:01:11]}  Bd3 {[%clk 0:00:09]} 26. Re3 {[%clk 0:00:58]}  Be2 {[%clk 0:00:09]} 27. Re1 {[%clk 0:00:52]}  Rc2 {[%clk 0:00:08]} 28. a4 {[%clk 0:00:51]}  Rd2 {[%clk 0:00:06]} 29. h3 {[%clk 0:00:51]}  Kh7 {[%clk 0:00:04]} 30. Kh2 {[%clk 0:00:50]}  Rb2 {[%clk 0:00:02]} 31. Nxe2 {[%clk 0:00:47]}  fxe2 {[%clk 0:00:03]} 32. R1xe2 {[%clk 0:00:47]}  Rb1 {[%clk 0:00:03]} 33. Rg3 {[%clk 0:00:47]}  Rxg3 {[%clk 0:00:02]} 34. fxg3 {[%clk 0:00:41]}  Rxb3 {[%clk 0:00:03]} 35. Re7 {[%clk 0:00:39]}  Rb2+ {[%clk 0:00:02]} 36. Kg1 {[%clk 0:00:39]}  Rb3 {[%clk 0:00:03]} 37. Kf2 {[%clk 0:00:38]}  a6 {[%clk 0:00:02]} 38. Re6 {[%clk 0:00:36]}  Rb2+ {[%clk 0:00:02]} 39. Kf3 {[%clk 0:00:35]}  Rb3+ {[%clk 0:00:02]} 40. Kf4 {[%clk 0:00:34]}  Rb4+ {[%clk 0:00:00]} 41. Re4 {[%clk 0:00:34]} 1-0

[Event "December 5 Late 2023"]
[Site "https://www.chess.com"]
[Date "2023.12.05"]
[Round "7"]
[White "Grutter, Tim"]
[Black "Gerbelli Neto, Eduardo"]
[Result "1-0"]
[Board "100"]
[TimeControl "180+1"]
[WhiteFideId "1057472"]
[BlackFideId "2103281"]
[WhiteElo "2507"]
[BlackElo "2335"]
[WhiteTeam "NED"]
[BlackTeam "BRA"]
[WhiteClock "0:00:56"]
[BlackClock "0:00:13"]

1. Nf3 {[%clk 0:03:00]}  Nf6 {[%clk 0:02:59]} 2. g3 {[%clk 0:03:01]}  c5 {[%clk 0:02:59]} 3. Bg2 {[%clk 0:03:01]}  Nc6 {[%clk 0:03:00]} 4. O-O {[%clk 0:03:01]}  e5 {[%clk 0:02:55]} 5. d3 {[%clk 0:03:01]}  d5 {[%clk 0:02:55]} 6. e4 {[%clk 0:02:51]}  dxe4 {[%clk 0:02:53]} 7. dxe4 {[%clk 0:02:52]}  Qxd1 {[%clk 0:02:52]} 8. Rxd1 {[%clk 0:02:53]}  Nd4 {[%clk 0:02:47]} 9. Ne1 {[%clk 0:02:31]}  Bg4 {[%clk 0:02:23]} 10. f3 {[%clk 0:02:26]}  O-O-O {[%clk 0:02:09]} 11. Kf2 {[%clk 0:02:08]}  Nxe4+ {[%clk 0:01:35]} 12. Kf1 {[%clk 0:02:08]}  Bh5 {[%clk 0:01:30]} 13. g4 {[%clk 0:02:08]}  Bg6 {[%clk 0:01:07]} 14. fxe4 {[%clk 0:02:06]}  h5 {[%clk 0:01:05]} 15. c3 {[%clk 0:02:02]}  Ne6 {[%clk 0:01:04]} 16. Rxd8+ {[%clk 0:02:01]}  Kxd8 {[%clk 0:01:05]} 17. gxh5 {[%clk 0:01:55]}  Rxh5 {[%clk 0:01:04]} 18. Kg1 {[%clk 0:01:48]}  c4 {[%clk 0:01:01]} 19. Be3 {[%clk 0:01:46]}  Bc5 {[%clk 0:00:54]} 20. Bxc5 {[%clk 0:01:46]}  Nxc5 {[%clk 0:00:55]} 21. Nd2 {[%clk 0:01:46]}  b5 {[%clk 0:00:53]} 22. Rd1 {[%clk 0:01:37]}  Ke7 {[%clk 0:00:53]} 23. b3 {[%clk 0:01:33]}  cxb3 {[%clk 0:00:40]} 24. axb3 {[%clk 0:01:21]}  Rh4 {[%clk 0:00:38]} 25. Ra1 {[%clk 0:01:16]}  a6 {[%clk 0:00:37]} 26. b4 {[%clk 0:01:12]}  Nxe4 {[%clk 0:00:37]} 27. Nxe4 {[%clk 0:01:10]}  Bxe4 {[%clk 0:00:38]} 28. Rxa6 {[%clk 0:01:07]}  Bxg2 {[%clk 0:00:32]} 29. Nxg2 {[%clk 0:01:07]}  Rc4 {[%clk 0:00:33]} 30. Ne3 {[%clk 0:01:03]}  Re4 {[%clk 0:00:29]} 31. Kf2 {[%clk 0:01:01]}  g6 {[%clk 0:00:28]} 32. Nd5+ {[%clk 0:00:57]}  Kf8 {[%clk 0:00:26]} 33. Rb6 {[%clk 0:00:56]}  Rh4 {[%clk 0:00:13]} 34. Kg3 {[%clk 0:00:56]} 1-0

[Event "December 5 Late 2023"]
[Site "https://www.chess.com"]
[Date "2023.12.05"]
[Round "7"]
[White "Dilmukhametov, Artur"]
[Black "Mazzilli, Piero"]
[Result "0-1"]
[Board "101"]
[TimeControl "180+1"]
[WhiteFideId "24179922"]
[BlackFideId "807087"]
[WhiteElo "2476"]
[BlackElo "2327"]
[WhiteTeam "RUS"]
[BlackTeam "ITA"]
[WhiteClock "0:00:01"]
[BlackClock "0:00:09"]

1. e4 {[%clk 0:02:57]}  c5 {[%clk 0:02:59]} 2. d4 {[%clk 0:02:56]}  cxd4 {[%clk 0:02:58]} 3. c3 {[%clk 0:02:57]}  Nf6 {[%clk 0:02:59]} 4. e5 {[%clk 0:02:57]}  Nd5 {[%clk 0:02:59]} 5. Bc4 {[%clk 0:02:57]}  Nb6 {[%clk 0:02:56]} 6. Bb3 {[%clk 0:02:57]}  Nc6 {[%clk 0:02:56]} 7. Nf3 {[%clk 0:02:57]}  d5 {[%clk 0:02:55]} 8. cxd4 {[%clk 0:02:57]}  Bg4 {[%clk 0:02:54]} 9. Be3 {[%clk 0:02:52]}  e6 {[%clk 0:02:53]} 10. O-O {[%clk 0:02:52]}  Be7 {[%clk 0:02:53]} 11. Nbd2 {[%clk 0:02:52]}  O-O {[%clk 0:02:52]} 12. Re1 {[%clk 0:02:51]}  Bf5 {[%clk 0:02:44]} 13. Nf1 {[%clk 0:02:41]}  Na5 {[%clk 0:02:37]} 14. Ng3 {[%clk 0:02:37]}  Bg6 {[%clk 0:02:36]} 15. Bc2 {[%clk 0:02:27]}  Rc8 {[%clk 0:02:26]} 16. Bxg6 {[%clk 0:02:24]}  fxg6 {[%clk 0:02:26]} 17. b3 {[%clk 0:02:25]}  Ba3 {[%clk 0:02:13]} 18. Qd2 {[%clk 0:02:20]}  Nc6 {[%clk 0:02:10]} 19. Ng5 {[%clk 0:02:18]}  Qd7 {[%clk 0:02:09]} 20. h4 {[%clk 0:02:16]}  Bb4 {[%clk 0:02:08]} 21. Qd3 {[%clk 0:02:10]}  Bxe1 {[%clk 0:02:08]} 22. Rxe1 {[%clk 0:02:11]}  Nb4 {[%clk 0:02:05]} 23. Qb1 {[%clk 0:02:01]}  Nc2 {[%clk 0:02:00]} 24. Re2 {[%clk 0:01:53]}  Qc6 {[%clk 0:01:53]} 25. Kh2 {[%clk 0:01:34]}  Nxe3 {[%clk 0:01:50]} 26. fxe3 {[%clk 0:01:35]}  Qc1 {[%clk 0:01:44]} 27. Qxc1 {[%clk 0:01:29]}  Rxc1 {[%clk 0:01:44]} 28. Nxe6 {[%clk 0:01:30]}  Rfc8 {[%clk 0:01:40]} 29. Rf2 {[%clk 0:01:28]}  Nd7 {[%clk 0:01:28]} 30. Nf4 {[%clk 0:01:26]}  Nb6 {[%clk 0:01:19]} 31. Ne6 {[%clk 0:01:25]}  R1c2 {[%clk 0:01:06]} 32. Rxc2 {[%clk 0:01:03]}  Rxc2 {[%clk 0:01:07]} 33. a4 {[%clk 0:01:04]}  Rc3 {[%clk 0:01:07]} 34. Nc5 {[%clk 0:01:00]}  Rxe3 {[%clk 0:01:00]} 35. e6 {[%clk 0:01:00]}  Kf8 {[%clk 0:00:53]} 36. Nf1 {[%clk 0:00:56]}  Re2 {[%clk 0:00:44]} 37. Ng3 {[%clk 0:00:54]}  Rd2 {[%clk 0:00:41]} 38. a5 {[%clk 0:00:50]}  Nc8 {[%clk 0:00:39]} 39. Nxb7 {[%clk 0:00:43]}  Rxd4 {[%clk 0:00:37]} 40. Kh3 {[%clk 0:00:33]}  Ke7 {[%clk 0:00:34]} 41. Nc5 {[%clk 0:00:31]}  Kd6 {[%clk 0:00:31]} 42. Nb7+ {[%clk 0:00:25]}  Kc7 {[%clk 0:00:27]} 43. a6 {[%clk 0:00:20]}  Rb4 {[%clk 0:00:11]} 44. h5 {[%clk 0:00:19]}  g5 {[%clk 0:00:09]} 45. Nf5 {[%clk 0:00:16]}  Rxb3+ {[%clk 0:00:09]} 46. Kg4 {[%clk 0:00:17]}  h6 {[%clk 0:00:08]} 47. Nxg7 {[%clk 0:00:15]}  Nd6 {[%clk 0:00:07]} 48. e7 {[%clk 0:00:13]}  Rb4+ {[%clk 0:00:04]} 49. Kg3 {[%clk 0:00:12]}  Rb3+ {[%clk 0:00:04]} 50. Kg4 {[%clk 0:00:12]}  Rxb7 {[%clk 0:00:03]} 51. axb7 {[%clk 0:00:11]}  Kxb7 {[%clk 0:00:03]} 52. Nf5 {[%clk 0:00:10]}  Ne8 {[%clk 0:00:03]} 53. Nd4 {[%clk 0:00:07]}  a5 {[%clk 0:00:03]} 54. Kf5 {[%clk 0:00:07]}  a4 {[%clk 0:00:03]} 55. Ke6 {[%clk 0:00:06]}  a3 {[%clk 0:00:04]} 56. Kxd5 {[%clk 0:00:06]}  a2 {[%clk 0:00:04]} 57. Nb3 {[%clk 0:00:06]}  Kc7 {[%clk 0:00:04]} 58. Ke6 {[%clk 0:00:06]}  g4 {[%clk 0:00:04]} 59. Kf7 {[%clk 0:00:07]}  Kd7 {[%clk 0:00:04]} 60. Nc5+ {[%clk 0:00:05]}  Kd6 {[%clk 0:00:04]} 61. Nb3 {[%clk 0:00:03]}  Nc7 {[%clk 0:00:05]} 62. e8=N+ {[%clk 0:00:01]}  Nxe8 {[%clk 0:00:05]} 63. Kxe8 {[%clk 0:00:02]}  Ke6 {[%clk 0:00:05]} 64. Kf8 {[%clk 0:00:03]}  Kf6 {[%clk 0:00:05]} 65. Kg8 {[%clk 0:00:03]}  Kg5 {[%clk 0:00:06]} 66. Kh7 {[%clk 0:00:02]}  Kxh5 {[%clk 0:00:06]} 67. Kg7 {[%clk 0:00:03]}  Kg5 {[%clk 0:00:06]} 68. Kh7 {[%clk 0:00:03]}  h5 {[%clk 0:00:07]} 69. Kg7 {[%clk 0:00:04]}  h4 {[%clk 0:00:08]} 70. Kf7 {[%clk 0:00:03]}  h3 {[%clk 0:00:08]} 71. gxh3 {[%clk 0:00:03]}  gxh3 {[%clk 0:00:09]} 72. Ke6 {[%clk 0:00:01]}  h2 {[%clk 0:00:09]} 0-1